bitfinex/quotes_ETHUSD_20250905
["timestamp","ask_amount","ask_price","bid_price","bid_amount"]
[1757038061592,0.001,4336.3,4336.2,1.3068]
[1757038063160,0.001,4336.3,4336.2,1.43748]
[1757038070295,0.001,4336.3,4336.2,3.74364668]
[1757038070494,0.001,4336.3,4336.2,4.43687717]
[1757038072173,0.001,4336.3,4336.2,4.34473883]
[1757038072373,0.001,4336.3,4336.2,4.45993883]
[1757038072974,0.001,4336.3,4336.2,4.43687717]
[1757038078300,0.315,4336.3,4336.2,0.80843049]
[1757038078597,0.315,4336.3,4336.2,0.1152]
[1757038080502,0.7719,4336.3,4336.2,0.1152]
[1757038082805,3.07806244,4336.3,4336.0,3.887]
[1757038083102,0.4569,4336.2,4336.0,3.887]
[1757038083600,0.314,4336.1,4336.0,3.887]
[1757038083775,0.7709,4336.1,4336.0,3.887]
[1757038084680,0.001,4336.3,4336.0,4.6347]
[1757038084994,0.001,4336.3,4336.0,4.348]
[1757038085505,0.314,4336.1,4336.0,3.887]
[1757038087300,0.001,4336.3,4336.0,4.348]
[1757038087706,0.314,4336.1,4336.0,3.887]
[1757038089980,0.001,4336.3,4336.0,4.3609]
[1757038090787,0.2958,4336.1,4336.0,3.887]
[1757038091889,0.7468,4336.1,4336.0,3.887]
[1757038092093,0.7468,4336.1,4336.0,0.004]
[1757038092293,3.05301987,4336.1,4336.0,0.004]
[1757038093011,6.16821987,4336.1,4336.0,0.004]
[1757038093194,6.17321987,4336.1,4336.0,0.004]
[1757038094442,6.16821987,4336.1,4336.0,0.004]
[1757038095014,5.71721987,4336.1,4336.0,0.004]
[1757038096829,6.16821987,4336.1,4336.0,0.004]
[1757038097690,10.05021987,4336.1,4336.0,0.004]
[1757038098697,10.84221987,4336.1,4336.0,0.004]
[1757038099311,10.84721987,4336.1,4336.0,0.004]
[1757038100326,10.84221987,4336.1,4336.0,0.004]
[1757038101724,11.01619052,4336.1,4336.0,0.004]
[1757038103802,6.68319052,4336.1,4336.0,0.004]
[1757038104010,9.59921987,4336.1,4336.0,0.004]
[1757038104204,5.71721987,4336.1,4336.0,0.004]
[1757038104523,9.59921987,4336.1,4336.0,0.004]
[1757038105827,3.882,4336.1,4336.0,1.2247]
[1757038106216,9.18821987,4336.1,4336.0,0.7679]
[1757038106412,9.18821987,4336.1,4336.0,0.4779]
[1757038106615,9.18821987,4336.1,4336.0,0.7679]
[1757038107416,5.30621987,4336.1,4336.0,0.7679]
[1757038108925,3.0,4336.1,4336.0,1.2247]
[1757038109251,0.001,4336.3,4336.0,1.46237]
[1757038109507,0.001,4336.3,4336.1,0.9307]
[1757038109832,0.001,4336.3,4336.2,1.2207]
[1757038112748,0.001,4336.3,4336.2,1.43627191]
[1757038113018,0.001,4336.3,4336.2,2.12952322]
[1757038113241,0.001,4336.3,4336.2,4.4356899]
[1757038113966,0.001,4336.3,4336.2,9.78749158]
[1757038114134,0.001,4336.3,4336.2,9.76442992]
[1757038118784,0.001,4336.3,4336.2,12.76442992]
[1757038119691,0.001,4336.3,4336.2,13.55642992]
[1757038120250,1e-08,4336.8,4336.7,8.31144082]
[1757038120492,1e-08,4336.8,4336.7,13.89144082]
[1757038120698,1e-08,4336.8,4336.7,14.31754082]
[1757038120867,1e-08,4336.8,4336.7,18.3341344]
[1757038121050,0.001,4337.2,4337.1,6.09768813]
[1757038121253,0.001,4337.2,4337.1,15.19222815]
[1757038121481,0.001,4337.2,4337.1,16.54252815]
[1757038121888,1e-08,4337.8,4337.7,3.0973692]
[1757038122091,1e-08,4337.8,4337.7,16.91396291]
[1757038122386,1e-08,4337.8,4337.7,18.24120922]
[1757038123091,1e-08,4337.8,4337.7,18.71110922]
[1757038123496,1e-08,4337.8,4337.7,13.4975692]
[1757038123666,1e-08,4337.8,4337.7,20.82251146]
[1757038124663,1e-08,4337.8,4337.7,5.06560224]
[1757038124870,1e-08,4337.8,4337.7,9.5893692]
[1757038125070,1e-08,4337.8,4337.7,14.80290922]
[1757038128396,1e-08,4337.8,4337.7,15.59490922]
[1757038129604,1e-08,4337.8,4337.7,18.59490922]
[1757038132409,0.001,4338.3,4338.2,2.30510349]
[1757038132606,0.001,4338.3,4338.2,15.67372375]
[1757038132806,0.001,4338.3,4338.2,15.96157272]
[1757038133107,0.001,4338.3,4338.2,16.97813942]
[1757038133478,0.001,4338.3,4338.2,19.31813942]
[1757038134707,0.001,4338.3,4338.2,19.43333942]
[1757038135210,0.025,4339.8,4338.2,19.43333942]
[1757038135211,1e-08,4338.8,4338.7,3.09683785]
[1757038135376,1e-08,4338.8,4338.7,17.21911003]
[1757038135582,1e-08,4338.8,4338.7,22.17761152]
[1757038135788,1e-08,4338.8,4338.7,22.64751152]
[1757038136225,1e-08,4338.8,4338.7,22.53231152]
[1757038136515,1e-08,4338.8,4338.7,18.22511658]
[1757038138192,1e-08,4338.8,4338.7,18.43796985]
[1757038139314,0.025,4339.8,4339.7,6.72670168]
[1757038139548,0.025,4339.8,4339.7,12.51555495]
[1757038139815,0.003,4340.4,4340.3,2.3039882]
[1757038140117,0.003,4340.4,4340.3,6.1819882]
[1757038140324,0.3085,4340.4,4340.3,6.39484147]
[1757038140487,0.3085,4340.4,4340.3,7.26473269]
[1757038140813,0.3085,4340.4,4340.3,7.37993269]
[1757038141185,0.003,4340.4,4340.3,11.80232763]
[1757038141907,0.4789,4341.1,4340.7,2.30377588]
[1757038142220,0.009,4341.1,4340.7,8.45473927]
[1757038142421,0.3305,4340.8,4340.7,8.66759254]
[1757038142594,0.3305,4340.8,4340.7,9.14649254]
[1757038145203,0.8004,4340.8,4340.7,13.56888748]
[1757038145828,0.3305,4340.8,4340.7,13.56888748]
[1757038148039,0.8004,4340.8,4340.7,2.50495327]
[1757038148331,0.8054,4340.8,4340.7,5.78685327]
[1757038148498,0.8014,4340.8,4340.7,8.09062915]
[1757038149836,0.026,4340.8,4340.7,8.57762915]
[1757038150035,0.026,4340.8,4340.7,10.46757313]
[1757038152042,0.3336,4340.8,4340.7,9.69027313]
[1757038152938,0.3336,4340.8,4340.7,10.17397313]
[1757038153123,0.026,4340.8,4340.7,10.66097313]
[1757038153344,0.3336,4340.8,4340.7,6.29797313]
[1757038153551,0.3336,4340.8,4340.7,12.99672409]
[1757038154243,0.3336,4340.8,4340.7,8.57432915]
[1757038154442,0.8083,4340.8,4340.7,8.57332915]
[1757038154827,0.3336,4340.8,4340.7,8.57332915]
[1757038155027,0.3336,4340.8,4340.7,12.99572409]
[1757038155226,0.3336,4340.8,4340.7,14.5256824]
[1757038156040,0.3336,4340.8,4340.7,14.5262482]
[1757038158133,0.3336,4340.8,4340.7,10.10385326]
[1757038158761,0.3336,4340.8,4340.7,10.21905326]
[1757038159331,0.3336,4340.8,4340.7,10.21929035]
[1757038161061,0.026,4340.8,4340.7,15.85008529]
[1757038161557,0.026,4340.8,4340.7,15.41898529]
[1757038161975,0.8083,4340.8,4340.7,10.21929035]
[1757038163859,0.8083,4340.8,4340.7,2.51055616]
[1757038164072,0.8083,4340.8,4340.7,8.47567588]
[1757038164454,0.8083,4340.8,4340.7,6.1719]
[1757038164644,0.8133,4340.8,4340.7,6.1719]
[1757038164960,0.8083,4340.8,4340.7,6.1719]
[1757038165644,0.8083,4340.8,4340.7,8.47567588]
[1757038166164,0.8083,4340.8,4340.7,6.1719]
[1757038168337,0.3336,4340.8,4340.7,8.47567588]
[1757038168946,0.3336,4340.8,4340.7,4.60067588]
[1757038169133,0.3336,4340.8,4340.7,8.47567588]
[1757038170267,0.026,4340.8,4340.7,8.47567588]
[1757038170470,0.026,4340.8,4340.7,9.68407588]
[1757038170768,0.026,4340.8,4340.7,11.32511017]
[1757038171666,0.026,4340.8,4340.7,15.74750511]
[1757038172270,0.001,4341.3,4341.0,2.30361667]
[1757038172441,0.001,4341.3,4341.2,7.53759494]
[1757038172644,0.001,4341.3,4341.2,10.13140549]
[1757038172856,0.001,4341.3,4341.2,13.15510771]
[1757038173455,0.001,4341.3,4341.2,12.60671277]
[1757038174271,0.001,4341.3,4341.2,12.17561277]
[1757038174479,0.3086,4341.3,4341.2,8.39831277]
[1757038175180,0.001,4341.3,4341.2,8.39831277]
[1757038175472,0.3086,4341.3,4341.2,4.52431277]
[1757038175674,0.3086,4341.3,4341.2,6.76741055]
[1757038176176,0.001,4341.3,4341.2,6.76741055]
[1757038176946,0.3086,4341.3,4341.2,6.76741055]
[1757038177574,0.3086,4341.3,4341.2,2.89341055]
[1757038177773,0.3086,4341.3,4341.2,6.76741055]
[1757038178447,0.7833,4341.3,4341.2,6.76741055]
[1757038179596,0.3086,4341.3,4341.2,6.76741055]
[1757038179775,0.7404,4341.3,4341.2,6.76741055]
[1757038180281,0.3086,4341.3,4341.2,6.76741055]
[1757038182383,0.7404,4341.3,4341.2,6.76741055]
[1757038183150,0.3086,4341.3,4341.2,0.5899]
[1757038183385,0.7404,4341.3,4341.2,4.4639]
[1757038183552,0.7404,4341.3,4341.2,3.9892]
[1757038184682,0.7404,4341.3,4341.2,0.1152]
[1757038184987,0.7404,4341.3,4341.2,3.9892]
[1757038185190,0.7454,4341.3,4341.2,0.1152]
[1757038185486,0.7454,4341.3,4341.2,3.9892]
[1757038185656,0.7454,4341.3,4340.7,1.698]
[1757038185657,3.7454,4341.3,4340.7,1.698]
[1757038185984,2.30356361,4341.1,4340.8,3.874]
[1757038186181,0.552,4341.2,4340.8,3.874]
[1757038186182,0.2879,4340.9,4340.8,3.874]
[1757038186383,0.7247,4340.9,4340.8,3.874]
[1757038186955,5.14209494,4340.9,4340.8,3.874]
[1757038188755,0.7197,4340.9,4340.8,3.874]
[1757038190685,0.2879,4340.9,4340.8,3.874]
[1757038191103,3.0,4341.2,4340.8,3.874]
[1757038191400,3.0,4341.2,4341.1,0.1152]
[1757038191603,3.2879,4341.2,4341.1,3.9892]
[1757038191975,3.7197,4341.2,4341.1,3.9892]
[1757038192877,8.14209494,4341.2,4341.1,3.9892]
[1757038193402,10.44560549,4341.2,4341.1,3.874]
[1757038193782,8.14209494,4341.2,4340.9,0.1152]
[1757038194085,8.14209494,4341.2,4341.0,3.874]
[1757038194403,0.4318,4341.1,4341.0,3.874]
[1757038195111,0.4318,4341.1,4340.9,0.1152]
[1757038195274,0.4318,4341.1,4341.0,3.874]
[1757038195275,2.73536361,4341.1,4341.0,3.874]
[1757038195473,3.02326361,4341.1,4341.0,3.874]
[1757038197089,3.02326361,4341.1,4340.7,1.8132]
[1757038197090,2.3036277,4341.0,4340.7,1.8132]
[1757038197284,14.14851269,4340.8,4340.7,0.1152]
[1757038197508,5.30377588,4340.7,4340.6,3.878]
[1757038197709,5.30377588,4340.7,4340.6,0.004]
[1757038197710,5.74057588,4340.7,4340.6,0.004]
[1757038198012,6.82047588,4340.7,4340.6,0.004]
[1757038201006,6.82047588,4340.7,4340.2,1e-08]
[1757038201007,11.30420556,4340.3,4340.2,1e-08]
[1757038201188,15.17820556,4340.3,4340.2,1e-08]
[1757038201385,15.90290556,4340.3,4340.2,1e-08]
[1757038201614,16.01810556,4340.3,4340.2,1e-08]
[1757038203012,15.22110556,4340.3,4340.2,1e-08]
[1757038206015,10.62740556,4340.3,4340.2,1e-08]
[1757038206191,5.20821736,4340.7,4340.2,1.18600001]
[1757038206389,2.3039882,4340.3,4340.2,0.75770001]
[1757038206993,2.3039692,4340.4,4340.2,0.75770001]
[1757038207213,5.20821736,4340.3,4340.2,0.46910001]
[1757038207416,10.80010556,4340.3,4340.2,1e-08]
[1757038207719,11.34710556,4340.3,4340.2,1e-08]
[1757038207917,10.91530556,4340.3,4340.2,1e-08]
[1757038208117,10.51220556,4340.3,4340.2,0.75770001]
[1757038208414,10.80010556,4340.3,4340.2,1e-08]
[1757038210815,11.24750556,4340.3,4340.2,1e-08]
[1757038211321,10.80010556,4340.3,4340.2,1e-08]
[1757038211998,10.51220556,4340.3,4340.2,0.49750001]
[1757038212319,10.80700556,4340.3,4340.2,1e-08]
[1757038212519,11.25440556,4340.3,4340.2,1e-08]
[1757038214891,12.04640556,4340.3,4340.2,1e-08]
[1757038215100,12.04640556,4340.3,4339.9,0.004]
[1757038215101,3.09614746,4340.0,4339.9,0.004]
[1757038215399,6.09614746,4340.0,4339.9,0.004]
[1757038215605,10.38114746,4340.0,4339.9,0.004]
[1757038215811,6.50614746,4340.0,4339.9,0.004]
[1757038216004,10.38114746,4340.0,4339.9,0.004]
[1757038217205,10.82854746,4340.0,4339.9,0.004]
[1757038219912,10.82854746,4340.0,4339.3,0.004]
[1757038219913,0.792,4339.5,4339.3,0.004]
[1757038220100,2.30438327,4339.6,4339.3,1e-08]
[1757038220101,15.29488341,4339.4,4339.3,1e-08]
[1757038220427,15.29488341,4339.4,4337.8,0.025]
[1757038220428,3.09673161,4338.9,4338.6,0.4975]
[1757038220601,15.17994897,4338.9,4338.6,0.4975]
[1757038220800,15.58994897,4338.9,4338.6,0.4975]
[1757038221219,15.58994897,4338.9,4338.3,0.4559]
[1757038221220,15.58994897,4338.9,4338.2,0.4975]
[1757038221420,16.03734897,4338.9,4338.2,0.4975]
[1757038221617,16.151019,4338.9,4338.2,0.4975]
[1757038222223,16.32072388,4338.9,4338.2,0.4975]
[1757038223145,3.792,4338.8,4337.8,0.025]
[1757038223438,8.32341736,4337.9,4337.8,0.025]
[1757038223603,10.62868027,4337.9,4337.8,0.025]
[1757038224226,10.62868027,4337.9,4337.8,0.5225]
[1757038224542,8.32341736,4337.9,4337.8,0.829]
[1757038224836,3.0,4337.9,4337.8,1.2849]
[1757038225400,5.30526291,4337.9,4337.8,0.829]
[1757038225803,5.30526291,4337.9,4337.8,1.2849]
[1757038226428,5.30526291,4337.9,4337.8,0.829]
[1757038226832,3.0,4337.9,4337.8,1.2849]
[1757038227404,5.30526291,4337.9,4337.8,1.2849]
[1757038228648,5.30526291,4337.9,4337.8,0.829]
[1757038229230,5.30526291,4337.9,4337.8,1.2849]
[1757038230817,5.30526291,4337.9,4337.8,0.829]
[1757038231147,10.80828027,4337.9,4337.8,0.025]
[1757038231549,11.60028027,4337.9,4337.8,0.025]
[1757038231737,12.04768027,4337.9,4337.8,0.025]
[1757038236241,11.60028027,4337.9,4337.8,0.025]
[1757038236630,15.47628027,4337.9,4337.8,0.025]
[1757038236948,15.92368027,4337.9,4337.8,0.025]
[1757038237747,12.04768027,4337.9,4337.8,0.025]
[1757038238247,15.92468027,4337.9,4337.8,0.025]
[1757038238654,15.47728027,4337.9,4337.8,0.025]
[1757038238856,12.05718027,4337.9,4337.8,0.025]
[1757038241458,15.93418027,4337.9,4337.8,0.025]
[1757038241753,15.47728027,4337.9,4337.8,0.025]
[1757038242052,15.93418027,4337.9,4337.8,0.029]
[1757038246069,15.47728027,4337.9,4337.8,0.029]
[1757038246291,15.18248027,4337.9,4337.8,0.3393]
[1757038246579,15.18248027,4337.9,4337.8,1.302]
[1757038247237,15.18248027,4337.9,4337.8,0.83]
[1757038247655,15.18248027,4337.9,4337.8,0.5197]
[1757038247850,15.49168027,4337.9,4337.8,0.5197]
[1757038248367,15.18248027,4337.9,4337.8,0.5197]
[1757038250472,15.18248027,4337.9,4337.8,0.83]
[1757038252451,15.49168027,4337.9,4337.8,0.029]
[1757038252850,15.18248027,4337.9,4337.8,0.029]
[1757038253072,11.30548027,4337.9,4337.8,0.83]
[1757038253267,15.18248027,4337.9,4337.8,0.83]
[1757038254965,15.18248027,4337.9,4337.8,0.5197]
[1757038256984,15.18248027,4337.9,4337.8,0.83]
[1757038257582,14.40467388,4337.9,4337.8,0.83]
[1757038257785,14.71387388,4337.9,4337.8,0.029]
[1757038260070,15.17077388,4337.9,4337.8,1e-08]
[1757038261184,14.71387388,4337.9,4337.8,1e-08]
[1757038261984,14.40367388,4337.9,4337.8,1.27300001]
[1757038262356,14.71287388,4337.9,4337.8,1e-08]
[1757038262560,15.16977388,4337.9,4337.8,1e-08]
[1757038262855,14.71287388,4337.9,4337.8,1e-08]
[1757038263061,15.16977388,4337.9,4337.8,1e-08]
[1757038263261,15.16977388,4337.9,4337.8,0.02500001]
[1757038264076,6.09774129,4337.0,4336.9,0.004]
[1757038264407,19.42680002,4337.0,4336.9,0.004]
[1757038264719,19.97025531,4337.0,4336.9,0.004]
[1757038264864,19.80832408,4337.0,4336.9,0.004]
[1757038265663,19.80832408,4337.0,4336.8,1e-08]
[1757038265664,6.09779446,4336.9,4336.8,1e-08]
[1757038265873,6.55469446,4336.9,4336.8,1e-08]
[1757038266092,6.55469446,4336.9,4335.8,0.5157]
[1757038266093,3.09821987,4336.1,4335.8,0.5157]
[1757038266294,3.09821987,4336.1,4335.8,0.025]
[1757038266295,14.51983084,4336.1,4335.8,0.025]
[1757038266625,15.28593084,4336.1,4335.8,0.025]
[1757038268130,15.00151219,4336.1,4335.8,0.025]
[1757038269325,15.00151219,4336.1,4335.8,0.508]
[1757038269747,14.69231219,4336.1,4335.8,0.508]
[1757038270391,14.69231219,4336.1,4336.0,0.487]
[1757038270820,10.81631219,4336.1,4336.0,0.487]
[1757038271005,14.69331219,4336.1,4336.0,0.7809]
[1757038271406,14.69331219,4336.1,4336.0,0.487]
[1757038271607,15.00331219,4336.1,4336.0,0.487]
[1757038271833,15.00331219,4336.1,4336.0,0.004]
[1757038272526,15.45951219,4336.1,4336.0,0.004]
[1757038273408,6.09832625,4335.9,4335.8,1e-08]
[1757038273626,9.97532625,4335.9,4335.8,1e-08]
[1757038273846,10.74152625,4335.9,4335.8,1e-08]
[1757038274222,15.17193722,4335.9,4335.8,1e-08]
[1757038274547,10.74152625,4335.9,4335.8,1e-08]
[1757038275327,14.71573722,4335.9,4335.8,1e-08]
[1757038275530,15.17193722,4335.9,4335.8,1e-08]
[1757038276442,15.17193722,4335.9,4335.5,1e-08]
[1757038276443,3.09848583,4335.6,4335.5,1e-08]
[1757038276743,18.95150777,4335.6,4335.5,1e-08]
[1757038276919,19.71770777,4335.6,4335.5,1e-08]
[1757038277320,19.71770777,4335.6,4335.1,1e-08]
[1757038277321,3.09869865,4335.2,4335.1,1e-08]
[1757038277520,16.22130962,4335.2,4335.1,1e-08]
[1757038277747,16.98750962,4335.2,4335.1,1e-08]
[1757038278631,16.53130962,4335.2,4335.1,1e-08]
[1757038279852,12.34430962,4335.2,4335.1,0.77690001]
[1757038280052,16.22230962,4335.2,4335.1,1.24680001]
[1757038280558,16.98850962,4335.2,4335.1,1e-08]
[1757038281348,2.30688148,4334.9,4334.6,0.004]
[1757038281552,3.0991244,4334.4,4334.3,0.004]
[1757038281738,11.9871244,4334.4,4334.3,0.004]
[1757038281942,12.4433244,4334.4,4334.3,0.004]
[1757038282141,6.09917762,4334.3,4333.9,0.004]
[1757038282347,3.792,4333.9,4333.5,0.483]
[1757038282552,7.98,4333.9,4333.5,0.483]
[1757038282855,10.74359057,4333.9,4333.5,0.483]
[1757038283224,10.40591083,4333.9,4333.5,0.483]
[1757038284350,10.57811588,4333.9,4333.5,0.483]
[1757038284555,10.57811588,4333.9,4333.3,0.4699]
[1757038284556,6.39011588,4333.9,4333.8,0.3189]
[1757038284783,14.69852685,4333.9,4333.8,1.2718]
[1757038285523,14.69852685,4333.9,4333.8,0.8019]
[1757038291351,14.69852685,4333.9,4333.8,0.508]
[1757038291556,14.81372685,4333.9,4333.8,0.508]
[1757038291767,14.81372685,4333.9,4333.8,0.8019]
[1757038295047,2.42259057,4333.9,4333.8,1.2718]
[1757038295246,6.30159057,4333.9,4333.8,1.2718]
[1757038295463,10.09359057,4333.9,4333.8,1.2718]
[1757038296894,10.09359057,4333.9,4333.8,1.2758]
[1757038299600,10.09359057,4333.9,4333.8,1.2609]
[1757038300259,10.27059497,4333.9,4333.8,1.2609]
[1757038301370,10.56769497,4333.9,4333.8,0.029]
[1757038301580,11.03159497,4333.9,4333.8,1e-08]
[1757038301894,3.0996568,4333.4,4333.3,0.004]
[1757038302074,16.22526777,4333.4,4333.3,0.004]
[1757038302260,16.52236777,4333.4,4333.3,0.004]
[1757038303760,3.09986983,4333.0,4332.9,0.004]
[1757038303959,14.5244808,4333.0,4332.9,0.004]
[1757038304184,15.2854808,4333.0,4332.9,0.004]
[1757038305081,15.7535808,4333.0,4332.9,0.004]
[1757038306773,19.72009177,4333.0,4332.9,0.004]
[1757038309392,19.25199177,4333.0,4332.9,0.004]
[1757038310306,5.42306983,4333.0,4332.9,0.7775]
[1757038310600,9.30206983,4333.0,4332.9,1.2325]
[1757038310800,10.09406983,4333.0,4332.9,1.2325]
[1757038311005,10.09406983,4333.0,4332.9,0.7775]
[1757038314215,10.09406983,4333.0,4332.9,1.2325]
[1757038315376,9.30206983,4333.0,4332.9,1.2325]
[1757038316122,3.1152,4333.0,4332.9,1.2325]
[1757038316494,5.42306983,4333.0,4332.9,1.2325]
[1757038321091,3.1152,4333.0,4332.9,1.2325]
[1757038323025,5.42306983,4333.0,4332.9,1.2325]
[1757038323225,5.42306983,4333.0,4332.9,0.7775]
[1757038323226,10.64847302,4333.0,4332.9,0.7775]
[1757038323587,10.64847302,4333.0,4332.9,1.2325]
[1757038324223,8.34060319,4333.0,4332.9,1.2325]
[1757038324408,3.1152,4333.0,4332.9,1.2325]
[1757038325220,5.42306983,4333.0,4332.9,1.2325]
[1757038325515,5.42306983,4333.0,4332.9,0.4721]
[1757038325918,5.42306983,4333.0,4332.9,0.7775]
[1757038326122,3.1152,4333.0,4332.9,0.7775]
[1757038326619,3.1152,4333.0,4332.9,1.2325]
[1757038326824,1.701,4334.1,4332.9,1.35825]
[1757038327016,0.1152,4333.5,4333.0,0.9231]
[1757038327212,0.1152,4333.5,4333.4,0.3054]
[1757038327824,0.1152,4333.5,4333.4,1.2285]
[1757038328894,0.1152,4334.1,4333.4,1.3437]
[1757038329219,0.1152,4334.1,4333.5,0.9062]
[1757038329519,2.42248833,4334.1,4333.5,0.9062]
[1757038329712,2.42248833,4334.1,4334.0,0.3008]
[1757038329915,2.42248833,4334.1,4334.0,0.7758]
[1757038330427,2.42248409,4334.1,4334.0,0.7758]
[1757038330799,2.30736334,4334.0,4333.7,0.475]
[1757038331002,0.001,4333.8,4333.4,0.475]
[1757038331222,0.1152,4333.6,4333.5,0.9062]
[1757038331417,0.1152,4333.6,4333.5,1.207]
[1757038331891,0.001,4333.8,4333.5,1.207]
[1757038332231,0.001,4333.8,4333.6,0.9062]
[1757038332730,0.001,4333.8,4333.7,0.7758]
[1757038333109,2.30844381,4333.8,4333.7,0.7758]
[1757038333426,2.61284381,4333.8,4333.2,0.4312]
[1757038333599,0.1152,4333.6,4333.4,0.475]
[1757038333796,0.1152,4333.6,4333.5,0.7758]
[1757038334328,0.1152,4333.6,4333.5,1.207]
[1757038335199,0.001,4333.8,4333.5,0.8965]
[1757038335401,0.001,4333.8,4333.6,0.9062]
[1757038335924,0.001,4333.8,4333.7,1.207]
[1757038336723,0.001,4333.8,4333.7,1.3222]
[1757038336922,0.001,4333.8,4333.7,3.62969705]
[1757038337228,0.001,4333.8,4333.7,4.16276675]
[1757038338515,0.001,4333.8,4333.7,1.8552697]
[1757038345945,0.3054,4333.8,4333.7,4.352]
[1757038346149,0.001,4333.8,4333.7,5.084]
[1757038347358,0.001,4333.8,4333.7,5.1992]
[1757038347516,0.001,4333.8,4333.7,7.50669705]
[1757038347714,0.001,4333.8,4333.7,8.65822451]
[1757038350730,0.001,4333.8,4333.7,6.35072746]
[1757038351059,0.001,4333.8,4333.7,8.65822451]
[1757038351556,0.001,4333.8,4333.7,2.04252746]
[1757038351763,0.001,4333.8,4333.7,4.767]
[1757038352058,0.001,4333.8,4333.7,7.50569705]
[1757038358356,0.001,4333.8,4333.7,7.59817757]
[1757038367257,0.001,4333.8,4333.7,7.16597757]
[1757038367429,0.001,4333.8,4333.7,7.60977757]
[1757038367632,0.001,4333.8,4333.7,9.29415454]
[1757038368757,0.001,4333.8,4333.7,8.85035454]
[1757038369067,0.001,4333.8,4333.7,9.29415454]
[1757038372962,1e-08,4334.3,4334.2,11.32463405]
[1757038373138,1e-08,4334.3,4334.2,18.33863405]
[1757038373464,1e-08,4334.3,4334.2,23.54603405]
[1757038373666,1e-08,4334.3,4334.2,23.63848764]
[1757038373861,1e-08,4334.3,4334.2,25.90639561]
[1757038374060,1e-08,4334.3,4334.2,20.68099242]
[1757038375043,1e-08,4334.3,4334.2,15.57119242]
[1757038375245,0.28740001,4334.3,4334.2,18.67079242]
[1757038375560,0.76050001,4334.3,4334.2,15.67079242]
[1757038376166,0.28740001,4334.3,4334.2,15.67079242]
[1757038376368,0.76050001,4334.3,4334.2,15.67079242]
[1757038377748,0.28740001,4334.3,4334.2,15.67079242]
[1757038382968,0.28740001,4334.3,4334.2,13.36356156]
[1757038383291,0.28740001,4334.3,4334.2,15.67079242]
[1757038385298,0.28740001,4334.3,4334.2,16.15959242]
[1757038385482,1e-08,4334.3,4334.2,16.15959242]
[1757038385685,1e-08,4334.3,4334.2,16.15859242]
[1757038385885,0.28740001,4334.3,4334.2,15.66979242]
[1757038386488,0.76050001,4334.3,4334.2,1.90765359]
[1757038386690,0.76050001,4334.3,4334.2,1.7]
[1757038386691,7.50728406,4334.3,4334.2,1.7]
[1757038386885,10.50728406,4334.3,4334.2,5.573]
[1757038387304,7.50728406,4334.3,4334.2,3.873]
[1757038387496,10.50728406,4334.3,4334.2,3.873]
[1757038388169,2.30729071,4334.1,4333.8,0.1152]
[1757038388368,2.30729071,4334.1,4333.9,3.873]
[1757038388564,2.30739057,4333.9,4333.8,0.1152]
[1757038388764,2.30739057,4333.9,4333.5,1.7]
[1757038388765,2.30746134,4333.8,4333.5,1.7]
[1757038388991,2.30746134,4333.8,4333.6,3.873]
[1757038389193,0.7571,4333.7,4333.6,3.873]
[1757038393291,0.3163,4333.7,4333.6,3.873]
[1757038393603,0.3163,4333.7,4333.6,4.22032556]
[1757038393797,0.3163,4333.7,4333.6,3.9882]
[1757038394502,0.7571,4333.7,4333.6,3.9882]
[1757038395099,0.3163,4333.7,4333.6,3.9882]
[1757038395294,0.4408,4334.0,4333.6,5.13514027]
[1757038395492,0.4408,4334.0,4333.6,7.44269057]
[1757038396010,1e-08,4334.3,4333.9,2.72638343]
[1757038396173,1e-08,4334.3,4334.0,3.874]
[1757038396571,0.3163,4334.1,4334.0,3.874]
[1757038396875,0.7571,4334.1,4334.0,4.56768894]
[1757038398505,0.7571,4334.1,4334.0,0.69368894]
[1757038398706,0.7571,4334.1,4334.0,4.56768894]
[1757038399221,3.06438409,4334.1,4334.0,3.874]
[1757038399718,6.06938409,4334.1,4334.0,3.874]
[1757038400104,6.06938409,4334.1,4334.0,3.878]
[1757038400299,6.06438409,4334.1,4334.0,3.878]
[1757038400998,3.7571,4334.1,4334.0,3.878]
[1757038401203,6.06438409,4334.1,4334.0,3.878]
[1757038401608,3.7571,4334.1,4334.0,3.878]
[1757038402115,6.06438409,4334.1,4334.0,3.878]
[1757038403310,3.3163,4334.1,4334.0,3.878]
[1757038403910,6.06438409,4334.1,4334.0,3.878]
[1757038408894,6.06438409,4334.1,4334.0,0.004]
[1757038410795,5.62358409,4334.1,4334.0,0.004]
[1757038411212,5.62358409,4334.1,4334.0,0.4572]
[1757038412637,6.06438409,4334.1,4334.0,0.004]
[1757038413123,6.85638409,4334.1,4334.0,0.004]
[1757038418814,6.85928409,4334.1,4334.0,0.004]
[1757038419446,6.41558409,4334.1,4334.0,0.004]
[1757038419611,6.85928409,4334.1,4334.0,0.004]
[1757038422047,6.41558409,4334.1,4334.0,0.004]
[1757038423645,6.85928409,4334.1,4334.0,0.004]
[1757038424557,6.41558409,4334.1,4334.0,0.004]
[1757038429555,6.09928409,4334.1,4334.0,0.4629]
[1757038429728,6.39248409,4334.1,4334.0,0.4629]
[1757038430050,6.39248409,4334.1,4334.0,0.004]
[1757038431553,5.42248409,4334.1,4334.0,1.2033]
[1757038431737,5.42248409,4334.1,4334.0,0.7701]
[1757038432053,5.71568409,4334.1,4334.0,0.004]
[1757038434556,6.50768409,4334.1,4334.0,0.004]
[1757038437130,6.21448409,4334.1,4334.0,0.4629]
[1757038437932,6.21448409,4334.1,4334.0,0.7701]
[1757038437933,5.42248409,4334.1,4334.0,0.7701]
[1757038438170,1e-08,4334.3,4334.0,1.2033]